Cogmind - Beta 13 @@@ ROGUE MODE // 2024.04.01 @ 15:02:53 Player: Zaz Result: Destroyed by H-55 Commando with Assault Rifle Performance ------------- Evolutions (2) 1000 Regions Visited (7) 1400 Robots Destroyed (16) 80 Value Destroyed (325) 325 Prototype IDs (23) 460 Alien Tech Used (0) 0 Bonus (1000) 1000 TOTAL SCORE: 4265 Bonus ------- Entered Garrisons 200 Used RIF Installer 500 Aligned with FarCom 300 Cogmind --------- Core Integrity 0/550 Matter 8/300 Energy 98/100 System Corruption 8% Temperature Cool (0) Movement Core (50) Location -8/Materials Parts ------- > --- POWER (1) -------- (None) > --- PROPULSION (3) --- (None) > --- UTILITY (5) ------ (None) > --- WEAPON (2) ------- (None) > --- INVENTORY (5) ---- Light Nuclear Core Light Nuclear Core Weight Redist. System Sensor Array Reaction Control System Peak State ------------ > --- POWER ------------ Light Nuclear Core > --- PROPULSION ------- Flight Unit VTOL Module > --- UTILITY ---------- Small Storage Unit Weight Redist. System Improved Sensor Array Signal Interpreter 0b10 Alert Chip > --- WEAPON ----------- Light Assault Rifle Light Assault Rifle > --- INVENTORY -------- Ion Engine Nuclear Core Light Nuclear Core Light Nuclear Core Weight Redist. System Weight Redist. System Sensor Array Hardlight Generator [Rating: 22] Favorites ----------- Power Light Ion Engine Engine Light Ion Engine Power Core Light Nuclear Core Propulsion Compact Wheel Leg Aluminum Leg Wheel Compact Wheel Flight Unit Flight Unit Utility Small Storage Unit Device Sensor Array Storage Small Storage Unit Processor 0b10 Alert Chip Weapon Light Assault Rifle Energy Gun Small Laser Ballistic Gun Light Assault Rifle Launcher Rocket Launcher Special Weapon Mining Laser Build | -11 -10 -10 -10 -9 -8 -8 -8 ------- Run | Yrd Mat Min Exi Min Mat Gar Mat Slots Evolved 4 | . . . . . 4 . . Power . | . . . . . . . . Propulsion 1 | . . . . . 1 . . Utility 3 | . . . . . 3 . . Weapon . | . . . . . . . . Parts Attached 52 | 6 16 1 6 9 9 1 4 Power 7 | 1 3 . . 1 2 . . Engine 6 | 1 3 . . 1 1 . . Core 1 | . . . . . 1 . . Reactor . | . . . . . . . . Propulsion 10 | 2 4 . . 3 . . 1 Treads . | . . . . . . . . Leg 2 | . 2 . . . . . . Wheel 5 | 2 2 . . 1 . . . Hover . | . . . . . . . . Flight 3 | . . . . 2 . . 1 Utility 13 | 1 3 . 3 . 4 . 2 Device 7 | . 1 . 1 . 3 . 2 Storage 3 | 1 1 . 1 . . . . Processor 3 | . 1 . 1 . 1 . . Hackware . | . . . . . . . . Protection . | . . . . . . . . Artifact . | . . . . . . . . Weapon 22 | 2 6 1 3 5 3 1 1 Energy Gun 5 | 1 3 . 1 . . . . Energy Cannon . | . . . . . . . . Ballistic Gun 9 | 1 3 . 1 1 2 1 . Ballistic Cannon . | . . . . . . . . Launcher 4 | . . . . 3 . . 1 Special Weapon 4 | . . 1 1 1 1 . . Impact Weapon . | . . . . . . . . Slashing Weapon . | . . . . . . . . Piercing Weapon . | . . . . . . . . Special Melee Weapon . | . . . . . . . . Unidentified Prototypes 3 | . . . 3 . . . . Parts Lost 15 | . 4 . . 6 1 . 4 Power 4 | . 1 . . 2 . . 1 Propulsion 6 | . 2 . . 3 . . 1 Utility 2 | . . . . . . . 2 Weapon 3 | . 1 . . 1 1 . . Highest Loss Streak 4 | . 3 . . 4 1 . 4 To Critical Strikes . | . . . . . . . . Average Slot Usage (%) 90 | . 92 100 98 91 88 90 53 Engine 10 | . 13 14 14 11 4 . . Core 1 | . . . . . 4 9 4 Leg 2 | . 8 . . . . . . Wheel 16 | . 18 28 28 21 . . . Flight 4 | . . . . 2 18 18 10 Device 8 | . 5 14 9 . 18 18 11 Storage 13 | . 17 14 13 14 9 9 6 Processor 7 | . 1 . 4 14 18 18 13 Energy Gun 5 | . 14 2 . . . . . Ballistic Gun 12 | . 12 14 13 14 9 18 6 Special Weapon 5 | . . 12 13 8 7 . . Naked Turns 34 | . . . . . . . 34 Heaviest Build 15 | 12 13 11 11 15 13 13 14 Greatest Support 32 | 26 32 32 32 32 14 14 14 Greatest Overweight (x) 3 | . 3 . . 2 . . 2 Average Overweight (x) . | . . . . . . . . Largest Inventory Capacity 8 | 8 8 8 8 8 8 8 8 Average Capacity 7 | 7 8 8 7 8 8 8 7 Most Carried 8 | 5 8 8 8 8 7 6 8 Average Carried 6 | 1 5 8 7 7 5 6 7 Final Capacity 8 | 8 8 8 8 8 8 8 5 Final Carried 8 | 1 8 8 8 5 7 6 5 Class Distribution -------------------- 82% | Mutant 17% | Scout Dominant Class ---------------- Mutant | -10/Materials Mutant | -10/Mines Mutant | -10/Exiles Mutant | -9/Mines Scout | -8/Materials Scout | -8/Garrison Mutant | -8/Materials Resources | -11 -10 -10 -10 -9 -8 -8 -8 ----------- Run | Yrd Mat Min Exi Min Mat Gar Mat Matter Collected 493 | 255 217 10 . 11 . . . Remotely . | . . . . . . . . Salvage Created 642 | . 547 . . 95 . . . Parts 30 | . 23 . . 7 . . . Haulers Intercepted 1 | . 1 . . . . . . Recyclers Shooed 4 | . 4 . . . . . . Parts Field Recycled . | . . . . . . . . Retrieved Matter . | . . . . . . . . Parts Self-Destructed . | . . . . . . . . Prevented . | . . . . . . . . Kills | -11 -10 -10 -10 -9 -8 -8 -8 ------- Run | Yrd Mat Min Exi Min Mat Gar Mat Combat Hostiles Destroyed 10 | . 5 . . 5 . . . Guns 5 | . 4 . . 1 . . . AOE 4 | . . . . 4 . . . Classes Destroyed 5 | . 3 . . 2 . . . Builder 1 | . . . . 1 . . . Hauler 1 | . 1 . . . . . . Recycler 4 | . 4 . . . . . . Swarmer 3 | . . . . 3 . . . Grunt 7 | . 5 . . 2 . . . Best Kill Streak 5 | . 3 . . 5 . . . Combat Bots Only 4 | . 1 . . 4 . . . Max Kills in Single Turn 2 | . 1 . . 2 . . . Gunslinging . | . . . . . . . . Exploded 1 | . . . . 1 . . . Melee . | . . . . . . . . Uniques/NPCs Destroyed . | . . . . . . . . Combat | -11 -10 -10 -10 -9 -8 -8 -8 -------- Run | Yrd Mat Min Exi Min Mat Gar Mat Hostile Shots Fired 199 | . 61 . . 56 18 3 61 Missed 67 | . 16 . . 15 10 3 23 Damage Taken 1905 | . 579 . . 503 128 . 695 Core 763 | . 114 . . 97 46 . 506 Absorbed by Shields . | . . . . . . . . Regen/Repaired (Parts) 127 | . 127 . . . . . . Core Remaining (%) 57 | 100 . . . 15 . . . Volleys Fired 86 | . 58 . 3 15 8 . 2 Largest 2 | . 2 . 1 2 1 . 1 Hottest 120 | . 80 . 100 120 100 . 20 Shots Fired 145 | . 113 . 3 19 8 . 2 Gun 125 | . 113 . . 10 . . 2 Cannon . | . . . . . . . . Launcher 5 | . . . . 5 . . . Special 15 | . . . 3 4 8 . . Kinetic 72 | . 60 . . 10 . . 2 Thermal 68 | . 53 . 3 4 8 . . Explosive 5 | . . . . 5 . . . Electromagnetic . | . . . . . . . . Robot Hit Streak 8 | . 8 . . 2 . . 1 Robot Miss Streak 5 | . 3 . . 5 . . 1 Penetration Max . | . . . . . . . . Secondary Targets . | . . . . . . . . Shots Hit Robots 83 | . 78 . . 4 . . 1 Core Hits 35 | . 25 . . 9 . . 1 Critical Kills . | . . . . . . . . Critical Parts Destroyed . | . . . . . . . . Critical Strikes . | . . . . . . . . Melee Attacks . | . . . . . . . . Impact . | . . . . . . . . Slashing . | . . . . . . . . Piercing . | . . . . . . . . Sneak Attacks . | . . . . . . . . Combat Hostiles . | . . . . . . . . Follow-up Attacks . | . . . . . . . . Damage Inflicted 1177 | . 756 . . 400 . . 21 Guns 788 | . 755 . . 26 . . 7 Cannons . | . . . . . . . . Explosions 350 | . . . . 350 . . . Melee . | . . . . . . . . Ramming 15 | . 1 . . . . . 14 Kinetic 429 | . 396 . . 26 . . 7 Thermal 383 | . 359 . . 24 . . . Explosive 350 | . . . . 350 . . . Electromagnetic . | . . . . . . . . Impact . | . . . . . . . . Slashing . | . . . . . . . . Piercing . | . . . . . . . . Highest Corruption 8 | . 1 1 1 1 . . 8 Average Corruption 1 | . 1 1 1 1 . . 8 Corruption Purged . | . . . . . . . . Corruption Blocked . | . . . . . . . . Effects 14 | . 6 . 3 2 . . 3 Message Errors 4 | . 2 . . . . . 2 Matter Fused 3 | . 2 . . 1 . . . Heat Flow Errors 2 | . . . 1 1 . . . Parts Fused 1 | . . . 1 . . . . Data Loss (minor) 2 | . . . 1 . . . 1 Alerts 1 | . 1 . . . . . . Weapon Failures 1 | . 1 . . . . . . Overload Shots . | . . . . . . . . Overflow Damage 32 | . . . . 32 . . . Projectiles . | . . . . . . . . Explosions 32 | . . . . 32 . . . Melee . | . . . . . . . . Knockbacks . | . . . . . . . . Impact . | . . . . . . . . Kinetic . | . . . . . . . . Secondary . | . . . . . . . . Self-Inflicted Damage 83 | . . . . 76 . . 7 Shots 2 | . . . . 2 . . . Rammed 2 | . . . . . . . 2 Targets Rammed 3 | . 1 . . . . . 2 Kicked 1 | . 1 . . . . . . Crushed . | . . . . . . . . Highest Temperature 217 | . 204 . 217 164 28 . . Average Temperature 43 | . 47 . 64 49 10 . . Received Heat Transfer 645 | . 336 . . 174 81 . 54 Siege Activations . | . . . . . . . . Robots Corrupted . | . . . . . . . . Combat Hostiles . | . . . . . . . . Parts Fried . | . . . . . . . . Impact Corruptions . | . . . . . . . . Robots Melted 1 | . 1 . . . . . . Combat Hostiles 1 | . 1 . . . . . . Parts Melted 1 | . 1 . . . . . . Heat Transferred 850 | . 800 . . 50 . . . Parts Sabotaged . | . . . . . . . . Parts Stolen . | . . . . . . . . Parts Stripped . | . . . . . . . . Power Chain Reactions . | . . . . . . . . Alert | -11 -10 -10 -10 -9 -8 -8 -8 ------- Run | Yrd Mat Min Exi Min Mat Gar Mat Peak Influence 157 | . 157 30 . 124 79 85 112 Initial 48 | . . 30 . . 46 48 40 Average 47 | . 51 30 . 39 40 60 60 Maximum Alert Level . | . . . . . . . . Low Security (%) 100 | 100 100 100 . 100 100 100 100 Level 1 . | . . . . . . . . Level 2 . | . . . . . . . . Level 3 . | . . . . . . . . Level 4 . | . . . . . . . . Level 5 . | . . . . . . . . High Security . | . . . . . . . . Max Security . | . . . . . . . . Squads Dispatched 4 | . 1 . . 1 1 . 1 Investigation 1 | . 1 . . . . . . Extermination . | . . . . . . . . Reinforcement 3 | . . . . 1 1 . 1 Assault . | . . . . . . . . Garrison . | . . . . . . . . Intercept . | . . . . . . . . Searches Triggered . | . . . . . . . . Construction Impeded 1 | . . . . 1 . . . Haulers Reinforced . | . . . . . . . . Active Scanning Responses . | . . . . . . . . Cargo Convoy Interrupts . | . . . . . . . . Stealth | -11 -10 -10 -10 -9 -8 -8 -8 --------- Run | Yrd Mat Min Exi Min Mat Gar Mat Distress Signals 8 | . 1 . . 1 2 . 4 Communications Jammed . | . . . . . . . . Distress Signals . | . . . . . . . . Times Spotted 62 | . 20 . . 10 15 3 14 Peak Tracking Total 13 | . 4 . . 6 13 7 10 Tactical Retreats 9 | . 2 . . 2 1 1 3 Traps | -11 -10 -10 -10 -9 -8 -8 -8 ------- Run | Yrd Mat Min Exi Min Mat Gar Mat Traps Triggered 2 | . . . . . . 2 . Indirectly . | . . . . . . . . Trap Hack Attempts . | . . . . . . . . Triggered . | . . . . . . . . Disarmed . | . . . . . . . . Reprogrammed . | . . . . . . . . Reused . | . . . . . . . . Traps Extracted . | . . . . . . . . Installed . | . . . . . . . . Triggered . | . . . . . . . . Machines | -11 -10 -10 -10 -9 -8 -8 -8 ---------- Run | Yrd Mat Min Exi Min Mat Gar Mat Machines Disabled . | . . . . . . . . Max in Single Turn . | . . . . . . . . Machines Repaired . | . . . . . . . . Machines Dismantled . | . . . . . . . . Machines Sabotaged . | . . . . . . . . Overloaded Fab Kills . | . . . . . . . . Hacking | -11 -10 -10 -10 -9 -8 -8 -8 --------- Run | Yrd Mat Min Exi Min Mat Gar Mat Machines Accessed 18 | . 3 . 5 . 7 1 2 Terminals 9 | . 2 . . . 5 1 1 Fabricators . | . . . . . . . . Repair Stations 1 | . 1 . . . . . . Recycling Units 2 | . . . . . 1 . 1 Scanalyzers . | . . . . . . . . Garrison Access 1 | . . . . . 1 . . Total Hacks 82 | . 12 . 50 . 11 1 8 Successful 68 | . 9 . 50 . 6 1 2 Failed 14 | . 3 . . . 5 . 6 Catastrophic 2 | . . . . . 2 . . Database Lockouts . | . . . . . . . . Manual 4 | . . . 1 . 3 . . Terminals 20 | . 6 . . . 7 1 6 Fabricators . | . . . . . . . . Repair Stations 6 | . 6 . . . . . . Recycling Units 3 | . . . . . 1 . 2 Scanalyzers . | . . . . . . . . Garrison Access 3 | . . . . . 3 . . Terminal Hacks 58 | . 3 . 50 . 3 1 1 Record 50 | . 1 . 49 . . . . Branch Access Points 1 | . 1 . . . . . . Emergency Access Points 1 | . . . . . . . 1 Unreport Threat 1 | . . . . . 1 . . Maintenance Status 1 | . 1 . . . . . . Reinforcement Status 2 | . . . . . 2 . . Security Stations 1 | . . . . . . 1 . Derelict Proto ID Bank 1 | . . . 1 . . . . Fabricator Hacks . | . . . . . . . . Repair Station Hacks 6 | . 6 . . . . . . Scan Component 3 | . 3 . . . . . . Repair 3 | . 3 . . . . . . Recycling Unit Hacks 2 | . . . . . 1 . 1 Report Inventory 2 | . . . . . 1 . 1 Scanalyzer . | . . . . . . . . Garrison Access Hacks 2 | . . . . . 2 . . Unlock Access 1 | . . . . . 1 . . Coupler Status 1 | . . . . . 1 . . Unauthorized Hacks . | . . . . . . . . Terminals . | . . . . . . . . Fabricators . | . . . . . . . . Repair Stations . | . . . . . . . . Recycling Units . | . . . . . . . . Scanalyzers . | . . . . . . . . Garrison Access . | . . . . . . . . Data Cores Recovered . | . . . . . . . . Used . | . . . . . . . . Hacking Detections 9 | . 2 . . . 5 . 2 Full Trace Events 1 | . 1 . . . . . . Feedback Events 1 | . 1 . . . . . . Corruption 1 | . 1 . . . . . . Feedback Blocked . | . . . . . . . . Robot Schematics Acquired . | . . . . . . . . Robots Built . | . . . . . . . . Authchips . | . . . . . . . . Time . | . . . . . . . . Total Robot Build Rating . | . . . . . . . . Part Schematics Acquired . | . . . . . . . . Parts Built . | . . . . . . . . Authchips . | . . . . . . . . Time . | . . . . . . . . Total Part Build Rating . | . . . . . . . . Parts Repaired 3 | . 3 . . . . . . Time 78 | . 78 . . . . . . Parts Recycled . | . . . . . . . . Recycled Matter . | . . . . . . . . Retrieved Matter . | . . . . . . . . Retrieved Components . | . . . . . . . . Parts Scanalyzed . | . . . . . . . . Part Schematics Acquired . | . . . . . . . . Parts Damaged . | . . . . . . . . Bothacking | -11 -10 -10 -10 -9 -8 -8 -8 ------------ Run | Yrd Mat Min Exi Min Mat Gar Mat Used RIF Installer 1 | . . . . . . 1 . Robots Hacked . | . . . . . . . . Non-combat . | . . . . . . . . Combat . | . . . . . . . . Robot Hacks Applied . | . . . . . . . . Relay Couplers Released . | . . . . . . . . Fabnet Peak Effective % . | . . . . . . . . Robots Rewired . | . . . . . . . . Allies Hacked . | . . . . . . . . Hacks Repelled . | . . . . . . . . Allies | -11 -10 -10 -10 -9 -8 -8 -8 -------- Run | Yrd Mat Min Exi Min Mat Gar Mat Total Allies 1 | . . 1 . . . . . Largest Group 1 | . . 1 . . . . . Highest-Rated Group 31 | . . 31 . . . . . Highest-Rated Ally 31 | . . 31 . . . . . Total Orders . | . . . . . . . . Ally Attacks 2 | . . 2 . . . . . Total Damage . | . . . . . . . . Kills . | . . . . . . . . Allies Corrupted . | . . . . . . . . Allies Melted . | . . . . . . . . Intel | -11 -10 -10 -10 -9 -8 -8 -8 ------- Run | Yrd Mat Min Exi Min Mat Gar Mat Robot Analysis Total . | . . . . . . . . Derelict Logs Recovered 1 | . . . . 1 . . . Drone Launches . | . . . . . . . . Drone Recoveries . | . . . . . . . . Exploration | -11 -10 -10 -10 -9 -8 -8 -8 ------------- Run | Yrd Mat Min Exi Min Mat Gar Mat Turns Passed 2260 | 38 793 73 554 252 237 113 200 Spaces Moved 2021 | 33 444 69 518 221 350 102 284 Core 137 | 10 11 . . 2 . . 114 Treads . | . . . . . . . . Legs 119 | . 119 . . . . . . Wheels 1087 | 23 314 69 518 163 . . . Hover . | . . . . . . . . Flight 678 | . . . . 56 350 102 170 Fastest Speed 34 | 50 90 100 100 34 34 34 34 Average Speed 76 | 77 106 100 100 83 34 34 45 Slowest Speed 200 | 90 200 100 100 150 34 34 150 Overloaded Moves . | . . . . . . . . Propulsion Burnouts . | . . . . . . . . Robots Hopped 11 | . . . . 1 5 . 5 Cave-ins Triggered . | . . . . . . . . Exploration Rate (%) 37 | 3 64 19 73 49 36 28 27 Regions Visited 7 Branch Regions 3 Pre-discovered Areas 1 | . . . 1 . . . . Known Exits Taken 2 | . 1 . . . 1 . . Unknown Exits Taken 4 | 1 . 1 1 1 . . . Scrap Searched 1 | . . . . 1 . . . Spaces Dug 9 | . . . 2 . 7 . . Terrain Destroyed 83 | . . . 3 72 8 . . Melee . | . . . . . . . . Projectile 13 | . . . 3 2 8 . . AOE 70 | . . . . 70 . . . Terrain Rammed . | . . . . . . . . Walls Destroyed . | . . . . . . . . Machines Disabled . | . . . . . . . . Actions | -11 -10 -10 -10 -9 -8 -8 -8 --------- Run | Yrd Mat Min Exi Min Mat Gar Mat Total 2557 | 45 663 73 549 262 437 179 349 Wait 306 | . 112 2 3 8 68 59 54 Move 1997 | 32 443 68 517 218 342 101 276 Hop 7 | . . . . 1 3 . 3 Pick Up 57 | 7 24 1 10 5 6 . 4 Fast Attach 7 | . 1 . 1 3 . . 2 Attach 27 | 6 6 . 4 5 5 1 . Detach 2 | . . . 1 . 1 . . Swap 18 | . 9 1 1 1 4 . 2 Drop 29 | . 9 1 9 6 . . 4 Fire 86 | . 58 . 3 15 8 . 2 Melee . | . . . . . . . . Ram 2 | . . . . . . . 2 Kick 1 | . 1 . . . . . . Crush . | . . . . . . . . Escape Stasis 18 | . . . . . . 18 . Rewire . | . . . . . . . . Trap . | . . . . . . . . Miscellaneous . | . . . . . . . . Route ------- -11/Scrapyard -10/Materials (discovered 4 exits: [*Mat x2] / *Min x2) -10/Mines -10/Exiles -9/Mines -8/Materials -8/Garrison -8/Materials History --------- Turn | Location | Event 6 | -11/Scrapyard | Discovered new exit (range 16) 39 | -11/Scrapyard | Entered Materials 67 | -10/Materials | Identified exit to Mines 243 | -10/Materials | Lost 3 parts (2n1w) 316 | -10/Materials | Build established: Mutant 455 | -10/Materials | Discovered new exit (range 14) 664 | -10/Materials | Repaired Lgt. Assault Rifle 690 | -10/Materials | Repaired Ion Engine 719 | -10/Materials | Repaired Ion Engine 801 | -10/Materials | Discovered new exit (range 3) 832 | -10/Materials | Entered Mines 835 | -10/Mines | Received a Mining Laser from a helpful Derelict 848 | -10/Mines | Assembled infested the area 901 | -10/Mines | Deemed a non-threat by the Exiles lab entrance 901 | -10/Mines | Discovered new exit (range 5) 905 | -10/Mines | Entered Exiles 928 | -10/Exiles | Met 8R-AWN 953 | -10/Exiles | Met EX-HEX 1013 | -10/Exiles | Met EX-DEC 1038 | -10/Exiles | Learned location of Zion (-7) 1113 | -10/Exiles | Discovered new exit (range 10) 1179 | -10/Exiles | Met EX-BIN 1199 | -10/Exiles | Aligned with FarCom system 1200 | -10/Exiles | Given EX-Vault access code 1262 | -10/Exiles | Opened EX-Vault 1273 | -10/Exiles | Found Prototype Device 1277 | -10/Exiles | Identified Supersonic Drone Bay 1280 | -10/Exiles | Found Prototype Energy Gun 1282 | -10/Exiles | Identified AWS/Thermal 1286 | -10/Exiles | Found Prototype Processor 1286 | -10/Exiles | Identified 0b10 Alert Chip 1334 | -10/Exiles | Warned to stay clear of 0b10 Research branches 1459 | -10/Exiles | Left Exiles lab with 0b10 Alert Chip 1459 | -10/Exiles | Entered Mines 1551 | -9/Mines | Received a Rocket Launcher from a helpful Derelict 1602 | -9/Mines | Core integrity fell below 50% 1676 | -9/Mines | Lost 4 parts (1p2n1w) 1689 | -9/Mines | Core integrity fell below 20% 1697 | -9/Mines | Learned Materials security intel 1708 | -9/Mines | Discovered new exit (range 8) 1711 | -9/Mines | Entered Materials 1711 | -8/Materials | Evolved 4 slots: Propulsion x1, Utility x3 1948 | -8/Materials | Identified exit to Garrison 1948 | -8/Materials | Entered Garrison 1952 | -8/Garrison | Learned Materials security intel 1988 | -8/Garrison | Build established: Scout 2051 | -8/Garrison | Installed Relay Interface Framework 2057 | -8/Garrison | Discovered new exit (range 12) 2061 | -8/Garrison | Identified exit to Materials 2061 | -8/Garrison | Entered Materials 2211 | -8/Materials | Core integrity fell below 50% 2234 | -8/Materials | Lost 4 parts (1p1n2u) 2252 | -8/Materials | Core integrity fell below 20% 2261 | -8/Materials | Destroyed by H-55 Commando with Assault Rifle Last Messages --------------- 02203_ Sml. Storage Unit destroyed. 02206_ Signal Interpreter severed. 02207_ |G:SPD9ES2//EV2U9TIXLCM5Q8JQ4 02207_ ECM Suite severed. 02210_ C-30 ARC bursts open, deploying its payload. 02210_ H-55 Commando unfolds itself. 02210_ U-05 Engineer lays Concrete. 02212_ Acquired Flight Unit. 02213_ U-05 Engineer lays Concrete. 02216_ Flight Unit severed. 02218_ Slug penetrates Wall. 02226_ System corrupted: Component data lost. 02226_ 0b10 Alert Chip severed. 02232_ K-01 Serf collects debris. 02232_ Slammed into W-25 Informer. 02244_ K-01 Serf collects debris. 02249_ Acquired Rocket Launcher. 02250_ Dropped Rocket Launcher. 02257_ Slug penetrates Terminal. 02261_ Penetrated by Slug. Map ----- +----------------------------------------------------+ | ??????# """"" ###???#* #???????????????????????? | | ??????# """"" [# #???#! #???????????????????????? | | ??????# ####### #???????????????????????? | | ??????# """"" =/ #???????????????????????? | | ??????# """"" ## #######?????????????????? | | ??????? """"" "" ????????????????? | | ??????? ## ????????????????? | | ???????##### #### ??????????????? | | ??????########### #+###+##########???????????????? | | ??????# # # #????????????????????? | | ??????# ] # # "" """ ?????????????????????? | | ??????# + + ""S """ ?????????????????????? | | ??????# # # "" """ #????????????????????? | | ??????########### # """ #????????????????????? | | ??????# [ ## # """ #????????????????????? | | ??????# ## # #????????????????????? | | ??????# !!! ## # ! ! #????????????????????? | | ??????# !! # ##/########????????????????????? | | ??????# !! ## #???????????????????????????? | | ??????# ## ####????????????????????????? | | ??????? ## h ####?????????????????????? | | ????????? ## ^ ########??????????????? | | #?????????? ## # #??????????????? | | #############+## "T" # """ #??????????????? | | + ^ ^ + """ #??????????????? | | ###### @ # """ #??????????????? | | #????## *!! c ; #??????????????? | | #?????# ######## Y*!! ! # [ #??????????????? | | #?????# #??????# a *!! ########??????????????? | | #######/##?????# ######???????????????? | | #[ ! ####### ## ! #???Y???????????? | | # / ! + c ## #???????????????? | | # ########## #### ## [ #???????????????? | | # #?########+##### ## * #???????????????? | | # ###] # ##] #???????????????? | | + ! + + """ """ / ## #???????????????? | | # ### """ """ # ## #???????????????? | | # #?# """ """ # ####+####+###????????? | | # #?# # #????????? | | ##+#######?############## #????????? | | #????????????????####+#########+###????????? | | #????????????????# #??? ??????????? | | #????????????????# """ #??? ""??????????? | | #????????????????# !! """ #?? ""S ?????????? | | ? #????????????????# !! """ #?? "" ?????????? | | ? #????????????????# ! #?# ]]????????? | | ??#####????????????????# """ #? ] ????????? | | ???????????????????????# """ #?########???????? | | ???????????????????????#! """ #????????????????? | | ???????????????????????# #????????????????? | +----------------------------------------------------+ Best States ------------- Heat Dissipation 31 Energy Generation 14 Energy Capacity 350 Matter Stores 300 Matter Capacity 300 Sight Range 16 Robot Scan Range 14 Terrain Scan Density 10 ECM Strength 1 Additional Mass Support 6 Evasion (%) 63 Item Schematics ----------------- None Robot Schematics ------------------ None Fabricated ------------ Nothing Alien Tech Used ----------------- None Achievements -------------- Cya! Tourist Challenges ------------ None Game ------ Seed CentriumFluxLegs Manual? 0 Play Time 00:48:04 Cumulative 6.7 hours Start 2024.04.01 @ 14:17:00 End 2024.04.01 @ 15:02:53 Sessions 1 Manual Loads 0 Difficulty Rogue Special Mode None Game No. 7 Rogue 7 Adventurer 0 Explorer 0 Win Type - Total 0 Types 0/0/0/0/0/0/0/0/0 Lore% 11 Gallery% 10 Achievement% 11 Wizard Run 0 Options --------- Layout 0 ASCII 0 Keyboard 0 Movement Mouse Keybinds 0 Fullscreen 2 Font 20/Terminus Map View 140x60 Zoom Use 0% Tactical HUD 1 Map Filters NONE Filters NONE Steam 1 RUN: 0329cedd-8461-4d60-bcd2-cdada84e42c9